fUSD/lending_fUSD_20250528
["ID","MTS","AMOUNT","RATE_DAILY","PERIOD"]
[362830660,1748476266772,-420.0,0.0003315,7]
[362830661,1748476266781,-420.0,0.0003315,7]
[362830662,1748476266791,-420.0,0.0003315,7]
[362830663,1748476266800,-420.0,0.0003315,7]
[362830664,1748476266810,-514.13745636,0.0003315,7]
[362830665,1748476266819,-420.0,0.0003315,7]
[362830666,1748476266829,-420.0,0.0003315,7]
[362830667,1748476266838,-420.0,0.0003315,7]
[362830668,1748476266847,-420.0,0.0003315,7]
[362830669,1748476266858,-420.0,0.0003315,7]
[362830670,1748476266868,-420.0,0.0003315,7]
[362830671,1748476266878,-420.0,0.0003315,7]
[362830672,1748476266888,-420.0,0.0003315,7]
[362830673,1748476266898,-420.0,0.0003315,7]
[362830674,1748476266907,-420.0,0.0003315,7]
[362830675,1748476266917,-378.25064999,0.0003315,7]
[362830676,1748476266927,-420.0,0.0003315,7]
[362830677,1748476266936,-181.0089527,0.0003315,7]
[362830678,1748476266946,-420.0,0.0003315,7]
[362830679,1748476266956,-420.0,0.0003315,7]
[362830680,1748476266966,-420.0,0.0003315,7]
[362830681,1748476266975,-420.0,0.0003315,7]
[362830682,1748476266985,-420.0,0.0003315,7]
[362830683,1748476266996,-420.0,0.0003315,7]
[362830684,1748476267006,-420.0,0.0003315,7]
[362830685,1748476267016,-420.0,0.0003315,7]
[362830686,1748476267027,-392.72951752,0.0003315,7]
[362830687,1748476267037,-420.0,0.0003315,7]
[362830688,1748476267047,-420.0,0.0003315,7]
[362830689,1748476267057,-420.0,0.0003315,7]
[362830690,1748476267066,-420.0,0.0003315,7]
[362830691,1748476267076,-697.49,0.0003315,2]
[362830692,1748476267086,-420.0,0.0003315,7]
[362830693,1748476267095,-420.0,0.0003315,7]
[362830694,1748476267105,-250.0,0.0003315,7]
[362830695,1748476267116,-420.0,0.0003315,7]
[362830696,1748476267126,-420.0,0.0003315,7]
[362830697,1748476267136,-420.0,0.0003315,7]
[362830698,1748476267145,-567.19,0.0003315,7]
[362830699,1748476267155,-420.0,0.0003315,7]
[362830700,1748476267166,-420.0,0.0003315,7]
[362830701,1748476267176,-420.0,0.0003315,7]
[362830702,1748476267185,-420.0,0.0003315,7]
[362830703,1748476267195,-420.0,0.0003315,7]
[362830704,1748476267205,-420.0,0.0003315,7]
[362830705,1748476267214,-420.0,0.0003315,7]
[362830706,1748476267223,-420.0,0.0003315,7]
[362830707,1748476267233,-420.0,0.0003315,7]
[362830708,1748476267242,-420.0,0.0003315,7]
[362830709,1748476267252,-778.61,0.0003315,7]
[362830710,1748476267262,-420.0,0.0003315,7]
[362830711,1748476267272,-744.63,0.0003315,7]
[362830712,1748476267282,-689.24,0.0003315,7]
[362830713,1748476267292,-420.0,0.0003315,7]
[362830714,1748476267302,-420.0,0.0003315,7]
[362830715,1748476267312,-420.0,0.0003315,7]
[362830716,1748476267321,-442.51302273,0.0003315,7]
[362830717,1748476267331,-420.0,0.0003315,7]
[362830718,1748476267340,-420.0,0.0003315,7]
[362830719,1748476267350,-827.46,0.0003315,7]
[362830720,1748476267359,-420.0,0.0003315,7]
[362830721,1748476267369,-420.0,0.0003315,7]
[362830722,1748476267379,-420.0,0.0003315,7]
[362830723,1748476267388,-420.0,0.0003315,7]
[362830724,1748476267398,-1505.43,0.0003315,7]
[362830725,1748476267407,-1725.51,0.0003315,7]
[362830726,1748476267417,-420.0,0.0003315,7]
[362830727,1748476267426,-420.0,0.0003315,7]
[362830728,1748476267436,-1998.03,0.0003315,2]
[362830729,1748476267446,-430.85080996,0.0003315,7]
[362830730,1748476267456,-472.22460336,0.0003315,7]
[362830731,1748476267465,-423.06837547,0.0003315,7]
[362830732,1748476267475,-420.0,0.0003315,7]
[362830733,1748476267485,-420.0,0.0003315,7]
[362830734,1748476267495,-420.0,0.0003315,7]
[362830735,1748476267507,-420.0,0.0003315,7]
[362830736,1748476267516,-420.0,0.0003315,7]
[362830737,1748476267526,-1000.0,0.0003315,7]
[362830738,1748476267536,-420.0,0.0003315,7]
[362830739,1748476267546,-420.0,0.0003315,7]
[362830740,1748476267556,-420.0,0.0003315,7]
[362830741,1748476267565,-24790.16,0.0003315,7]
[362830742,1748476267575,-5896.87,0.0003315,7]
[362830743,1748476267584,-301.07388042,0.0003315,7]
[362830744,1748476267594,-1302.51,0.0003315,7]
[362830745,1748476267603,-420.0,0.0003315,7]
[362830746,1748476267614,-420.0,0.0003315,7]
[362830747,1748476267623,-420.0,0.0003315,7]
[362830748,1748476267632,-420.0,0.0003315,7]
[362830749,1748476267642,-420.0,0.0003315,7]
[362830750,1748476267651,-428.59427159,0.0003315,7]
[362830751,1748476267660,-420.0,0.0003315,7]
[362830752,1748476267670,-360.97594041,0.0003315,7]
[362830753,1748476267679,-420.0,0.0003315,7]
[362830754,1748476267688,-420.0,0.0003315,7]
[362830755,1748476267698,-546.38,0.0003315,7]
[362830756,1748476267707,-420.0,0.0003315,7]
[362830757,1748476267716,-395.85856507,0.0003315,7]
[362830758,1748476267726,-665.39,0.0003315,7]
[362830759,1748476267736,-424.75852004,0.0003315,7]
[362830760,1748476267746,-1392.58,0.0003315,7]
[362830761,1748476267756,-165.99280307,0.0003315,7]
[362830762,1748476267765,-420.0,0.0003315,7]
[362830763,1748476267775,-420.0,0.0003315,7]
[362830764,1748476267785,-530.58,0.0003315,7]
[362830765,1748476267795,-420.0,0.0003315,7]
[362830766,1748476267804,-442.80797132,0.0003315,7]
[362830767,1748476267813,-1389.5,0.0003315,7]
[362830768,1748476267823,-420.0,0.0003315,7]
[362830769,1748476267833,-420.0,0.0003315,7]
[362830770,1748476267842,-420.0,0.0003315,7]
[362830771,1748476267851,-420.0,0.0003315,7]
[362830772,1748476267864,-420.0,0.0003315,7]
[362830773,1748476267873,-420.0,0.0003315,7]
[362830774,1748476267882,-420.0,0.0003315,7]
[362830775,1748476267891,-420.0,0.0003315,7]
[362830776,1748476267901,-420.0,0.0003315,7]
[362830777,1748476267914,-420.0,0.0003315,7]
[362830778,1748476267923,-2891.51,0.0003315,7]
[362830779,1748476267933,-1865.15,0.0003315,7]
[362830780,1748476267944,-420.0,0.0003315,7]
[362830781,1748476267954,-420.0,0.0003315,7]
[362830782,1748476267965,-420.0,0.0003315,7]
[362830783,1748476267976,-420.0,0.0003315,7]
[362830784,1748476267986,-420.0,0.0003315,7]
[362830785,1748476267997,-182.26273262,0.0003315,7]
[362830786,1748476268008,-420.0,0.0003315,7]
[362830787,1748476268018,-4360.44,0.0003315,7]
[362830788,1748476268029,-420.0,0.0003315,7]
[362830789,1748476268038,-420.0,0.0003315,7]
[362830790,1748476268049,-1085.42,0.0003315,7]
[362830791,1748476268059,-745.05,0.0003315,7]
[362830792,1748476268069,-420.0,0.0003315,7]
[362830793,1748476268080,-151.0,0.0003315,7]
[362830794,1748476268090,-151.0,0.0003315,7]
[362830795,1748476268101,-420.0,0.0003315,7]
[362830796,1748476268111,-420.0,0.0003315,7]
[362830797,1748476268120,-1416.75,0.0003315,7]
[362830798,1748476268130,-420.0,0.0003315,7]
[362830799,1748476268139,-437.24,0.0003315,7]
[362830800,1748476268149,-436.44670529,0.0003315,7]
[362830801,1748476268158,-420.0,0.0003315,7]
[362830802,1748476268167,-420.0,0.0003315,7]
[362830803,1748476268178,-382.72025432,0.0003315,7]
[362830804,1748476268187,-420.0,0.0003315,7]
[362830805,1748476268197,-18378.98,0.0003315,7]
[362830806,1748476268206,-420.0,0.0003315,7]
[362830807,1748476268215,-560.18,0.0003315,7]
[362830808,1748476268226,-420.0,0.0003315,7]
[362830809,1748476268235,-420.0,0.0003315,7]
[362830810,1748476268245,-172.37042107,0.0003315,7]
[362830811,1748476268255,-420.0,0.0003315,7]
[362830812,1748476268265,-420.0,0.0003315,7]
[362830813,1748476268275,-540.59,0.0003315,7]
[362830814,1748476268285,-483.69859191,0.0003315,7]
[362830815,1748476268295,-585.09,0.0003315,7]
[362830816,1748476268304,-925.07,0.0003315,7]
[362830817,1748476268313,-420.0,0.0003315,7]
[362830818,1748476268323,-512.23,0.0003315,7]
[362830819,1748476268336,-950.54,0.0003315,7]
[362830820,1748476268346,-420.0,0.0003315,7]
[362830821,1748476268355,-420.0,0.0003315,7]
[362830822,1748476268366,-420.0,0.0003315,7]
[362830823,1748476268375,-420.0,0.0003315,7]
[362830824,1748476268385,-420.0,0.0003315,7]
[362830825,1748476268394,-420.0,0.0003315,7]
[362830826,1748476268404,-922.16,0.0003315,7]
[362830827,1748476268414,-420.0,0.0003315,7]
[362830828,1748476268424,-420.0,0.0003315,7]
[362830829,1748476268434,-411.446199,0.0003315,7]
[362830830,1748476268443,-420.0,0.0003315,7]
[362830831,1748476268578,-3720.29,0.0003315,7]
[362830832,1748476268588,-411.446199,0.0003315,7]
[362830833,1748476268597,-420.0,0.0003315,7]
[362830834,1748476268607,-420.0,0.0003315,7]
[362830835,1748476268617,-420.0,0.0003315,7]
[362830836,1748476268626,-420.0,0.0003315,7]
[362830837,1748476268635,-420.0,0.0003315,7]
[362830838,1748476268646,-733.88,0.0003315,7]
[362830839,1748476268656,-420.0,0.0003315,7]
[362830840,1748476268665,-420.0,0.0003315,7]
[362830841,1748476268674,-411.446199,0.0003315,7]
[362830842,1748476268684,-461.98829718,0.0003315,7]
[362830843,1748476268693,-411.446199,0.0003315,7]
[362830844,1748476268703,-2470.63,0.0003315,7]
[362830845,1748476268712,-420.0,0.0003315,7]
[362830846,1748476268721,-1889.14,0.0003315,7]
[362830847,1748476268730,-420.0,0.0003315,7]
[362830848,1748476268741,-420.0,0.0003315,7]
[362830849,1748476268753,-420.0,0.0003315,7]
[362830850,1748476268762,-261.01887181,0.0003315,7]
[362830851,1748476268772,-618.93,0.0003315,7]
[362830852,1748476268782,-420.0,0.0003315,7]
[362830853,1748476268791,-420.0,0.0003315,7]
[362830854,1748476268800,-420.0,0.0003315,7]
[362830855,1748476268810,-420.0,0.0003315,7]
[362830856,1748476268822,-420.0,0.0003315,7]
[362830857,1748476268832,-429.09154978,0.0003315,7]
[362830858,1748476268843,-420.0,0.0003315,7]
[362830859,1748476268855,-420.0,0.0003315,7]
[362830860,1748476268866,-151.0,0.0003315,7]
[362830861,1748476268876,-151.0,0.0003315,7]
[362830862,1748476268886,-420.0,0.0003315,7]
[362830863,1748476268897,-420.0,0.0003315,7]
[362830864,1748476268906,-420.0,0.0003315,7]
[362830865,1748476268916,-420.0,0.0003315,7]
[362830866,1748476268926,-420.0,0.0003315,7]
[362830867,1748476268936,-545.12,0.0003315,7]
[362830868,1748476268945,-420.0,0.0003315,7]
[362830869,1748476268955,-420.0,0.0003315,7]
[362830870,1748476268964,-151.0,0.0003315,7]
[362830871,1748476268974,-420.0,0.0003315,7]
[362830872,1748476268983,-151.0,0.0003315,7]
[362830873,1748476268992,-420.0,0.0003315,7]
[362830874,1748476269002,-420.0,0.0003315,7]
[362830875,1748476269012,-1235.47,0.0003315,7]
[362830876,1748476269022,-420.0,0.0003315,7]
[362830877,1748476269031,-420.0,0.0003315,7]
[362830878,1748476269042,-420.0,0.0003315,7]
[362830879,1748476269051,-420.0,0.0003315,7]
[362830880,1748476269060,-420.0,0.0003315,7]
[362830881,1748476269070,-420.0,0.0003315,7]
[362830882,1748476269079,-420.0,0.0003315,7]
[362830883,1748476269088,-420.0,0.0003315,7]
[362830884,1748476269098,-1386.15,0.0003315,7]
[362830885,1748476269107,-420.0,0.0003315,7]
[362830886,1748476269118,-420.0,0.0003315,7]
[362830887,1748476269128,-420.0,0.0003315,7]
[362830888,1748476269137,-576.1,0.0003315,7]
[362830889,1748476269147,-420.0,0.0003315,7]
[362830890,1748476269156,-420.0,0.0003315,7]
[362830891,1748476269165,-420.0,0.0003315,7]
[362830892,1748476269175,-420.0,0.0003315,7]
[362830893,1748476269184,-420.0,0.0003315,7]
[362830894,1748476269194,-420.0,0.0003315,7]
[362830895,1748476269204,-440.95484594,0.0003315,7]
[362830896,1748476269214,-420.0,0.0003315,7]
[362830897,1748476269224,-423.14653253,0.0003315,7]
[362830898,1748476269233,-420.0,0.0003315,7]
[362830899,1748476269243,-420.0,0.0003315,7]
[362830900,1748476269253,-1672.37,0.0003315,7]
[362830901,1748476269263,-420.0,0.0003315,7]
[362830902,1748476269272,-420.0,0.0003315,7]
[362830903,1748476269282,-558.62,0.0003315,7]
[362830904,1748476269292,-1534.27,0.0003315,7]
[362830905,1748476269302,-420.0,0.0003315,7]
[362830906,1748476269311,-420.0,0.0003315,7]
[362830907,1748476269320,-420.0,0.0003315,7]
[362830908,1748476269330,-420.0,0.0003315,7]
[362830909,1748476269339,-420.0,0.0003315,7]
[362830910,1748476269348,-420.0,0.0003315,7]
[362830911,1748476269358,-420.0,0.0003315,7]
[362830912,1748476269368,-420.0,0.0003315,7]
[362830913,1748476269377,-722.96,0.0003315,7]
[362830914,1748476269387,-420.0,0.0003315,7]
[362830915,1748476269396,-420.0,0.0003315,7]
[362830916,1748476269405,-523.22,0.0003315,7]
[362830917,1748476269415,-420.0,0.0003315,7]
[362830918,1748476269424,-420.0,0.0003315,7]
[362830919,1748476269434,-420.0,0.0003315,7]
[362830920,1748476269443,-2238.46,0.0003315,7]
[362830921,1748476269452,-435.64224445,0.0003315,7]
[362830922,1748476269462,-420.0,0.0003315,7]
[362830923,1748476269471,-420.0,0.0003315,7]
[362830924,1748476269481,-420.0,0.0003315,7]
[362830925,1748476269491,-420.0,0.0003315,7]
[362830926,1748476269503,-221.38733371,0.0003315,7]
[362830927,1748476269512,-420.0,0.0003315,7]
[362830928,1748476269521,-420.0,0.0003315,7]
[362830929,1748476269531,-615.33,0.0003315,7]
[362830930,1748476269540,-420.0,0.0003315,7]
[362830931,1748476269550,-420.0,0.0003315,7]
[362830932,1748476269559,-420.0,0.0003315,7]
[362830933,1748476269568,-550.12,0.0003315,7]
[362830934,1748476269578,-420.0,0.0003315,7]
[362830935,1748476269587,-420.0,0.0003315,7]
[362830936,1748476269596,-420.0,0.0003315,7]
[362830937,1748476269605,-919.27,0.0003315,7]
[362830938,1748476269615,-420.0,0.0003315,7]
[362830939,1748476269625,-420.0,0.0003315,7]
[362830940,1748476269634,-420.0,0.0003315,7]
[362830941,1748476269643,-420.0,0.0003315,7]
[362830942,1748476269652,-420.0,0.0003315,7]
[362830943,1748476269661,-422.47,0.0003315,7]
[362830944,1748476269670,-420.0,0.0003315,7]
[362830945,1748476269680,-420.0,0.0003315,7]
[362830946,1748476269690,-420.0,0.0003315,7]
[362830947,1748476269699,-420.0,0.0003315,7]
[362830948,1748476269708,-420.0,0.0003315,7]
[362830949,1748476269717,-420.0,0.0003315,7]
[362830950,1748476269727,-2395.47,0.0003315,7]
[362830951,1748476269736,-420.0,0.0003315,7]
[362830952,1748476269745,-652.26,0.0003315,7]
[362830953,1748476269754,-750.772526,0.0003315,7]
[362830954,1748476269763,-750.772526,0.0003315,7]
[362830955,1748476269773,-420.0,0.0003315,7]
[362830956,1748476269782,-683.35,0.0003315,7]
[362830957,1748476269791,-1924.59,0.0003315,7]
[362830958,1748476269801,-420.0,0.0003315,7]
[362830959,1748476269810,-420.0,0.0003315,7]
[362830960,1748476269819,-420.0,0.0003315,7]
[362830961,1748476269829,-420.0,0.0003315,7]
[362830962,1748476269839,-420.0,0.0003315,7]
[362830963,1748476269849,-420.0,0.0003315,7]
[362830964,1748476269858,-750.772526,0.0003315,7]
[362830965,1748476269867,-881.18,0.0003315,7]
[362830966,1748476269876,-750.772526,0.0003315,7]
[362830967,1748476269886,-294.35704992,0.0003315,7]
[362830968,1748476269895,-420.0,0.0003315,7]
[362830969,1748476269904,-420.0,0.0003315,7]
[362830970,1748476269914,-429.85,0.0003315,7]
[362830971,1748476269923,-420.0,0.0003315,7]
[362830972,1748476269933,-420.0,0.0003315,7]
[362830973,1748476269942,-420.0,0.0003315,7]
[362830974,1748476269951,-420.0,0.0003315,7]
[362830975,1748476269960,-7004.41,0.0003315,7]
[362830976,1748476269969,-1015.25,0.0003315,7]
[362830977,1748476269979,-695.93,0.0003315,7]
[362830978,1748476269989,-420.0,0.0003315,7]
[362830979,1748476269998,-420.0,0.0003315,7]
[362830980,1748476270008,-1402.85,0.0003315,7]
[362830981,1748476270018,-420.0,0.0003315,7]
[362830982,1748476270027,-420.0,0.0003315,7]
[362830983,1748476270037,-449.74007292,0.0003315,7]
[362830984,1748476270048,-4866.73,0.0003315,7]
[362830985,1748476270057,-420.0,0.0003315,7]
[362830986,1748476270067,-1085.72,0.0003315,120]
[362830987,1748476270076,-420.0,0.0003315,7]
[362830988,1748476270086,-532.64,0.0003315,7]
[362830989,1748476270095,-420.0,0.0003315,7]
[362830990,1748476270104,-420.0,0.0003315,7]
[362830991,1748476270114,-422.09481446,0.0003315,7]
[362830992,1748476270124,-736.33,0.0003315,7]
[362830993,1748476270133,-420.0,0.0003315,7]
[362830994,1748476270142,-420.0,0.0003315,7]
[362830995,1748476270152,-478.6864233,0.0003315,7]
[362830996,1748476270162,-369.66299946,0.0003315,7]
[362830997,1748476270172,-420.0,0.0003315,7]
[362830998,1748476270181,-1530.115222,0.0003315,7]
[362830999,1748476270191,-420.0,0.0003315,7]
[362831000,1748476270200,-1530.115222,0.0003315,7]
[362831001,1748476270210,-420.0,0.0003315,7]
[362831002,1748476270219,-1393.9,0.0003315,7]
[362831003,1748476270228,-420.0,0.0003315,7]
[362831004,1748476270237,-437.56083672,0.0003315,7]
[362831005,1748476270247,-677.93,0.0003315,7]
[362831006,1748476270256,-420.0,0.0003315,7]
[362831007,1748476270267,-1530.115222,0.0003315,7]
[362831008,1748476270276,-424.03643265,0.0003315,7]
[362831009,1748476270286,-420.0,0.0003315,7]
[362831010,1748476270295,-420.0,0.0003315,7]
[362831011,1748476270304,-1530.115222,0.0003315,7]
[362831012,1748476270314,-424.75345579,0.0003315,7]
[362831013,1748476270324,-467.1,0.0003315,7]
[362831014,1748476270334,-427.2792551,0.0003315,7]
[362831015,1748476270343,-420.0,0.0003315,7]
[362831016,1748476270354,-2641.22,0.0003315,7]
[362831017,1748476270365,-420.0,0.0003315,7]
[362831018,1748476270374,-1436.99,0.0003315,7]
[362831019,1748476270384,-420.0,0.0003315,7]
[362831020,1748476270393,-420.0,0.0003315,7]
[362831021,1748476270521,-420.0,0.0003315,7]
[362831022,1748476270532,-230.95307375,0.0003315,7]
[362831023,1748476270542,-420.0,0.0003315,7]
[362831024,1748476270552,-420.0,0.0003315,7]
[362831025,1748476270561,-1502.51,0.0003315,7]
[362831026,1748476270570,-524.73233124,0.0003315,7]
[362831027,1748476270579,-420.0,0.0003315,7]
[362831028,1748476270588,-420.0,0.0003315,7]
[362831029,1748476270598,-442.12169622,0.0003315,7]
[362831030,1748476270607,-420.0,0.0003315,7]
[362831031,1748476270617,-420.0,0.0003315,7]
[362831032,1748476270627,-448.03,0.0003315,7]
[362831033,1748476270636,-626.21,0.0003315,7]
[362831034,1748476270646,-1434.37,0.0003315,7]
[362831035,1748476270656,-820.47,0.0003315,7]
[362831036,1748476270666,-420.0,0.0003315,7]
[362831037,1748476270676,-420.0,0.0003315,7]
[362831038,1748476270688,-420.0,0.0003315,7]
[362831039,1748476270699,-420.0,0.0003315,7]
[362831040,1748476270709,-420.0,0.0003315,7]
[362831041,1748476270719,-420.0,0.0003315,7]
[362831042,1748476270730,-420.0,0.0003315,7]
[362831043,1748476270740,-420.0,0.0003315,7]
[362831044,1748476270750,-420.0,0.0003315,7]
[362831045,1748476270760,-420.0,0.0003315,7]
[362831046,1748476270768,-494.06,0.0003315,7]
[362831047,1748476270778,-715.91,0.0003315,7]
[362831048,1748476270788,-420.0,0.0003315,7]
[362831049,1748476270799,-420.0,0.0003315,7]
[362831050,1748476270808,-420.0,0.0003315,7]
[362831051,1748476270820,-420.0,0.0003315,7]
[362831052,1748476270830,-420.0,0.0003315,7]
[362831053,1748476270840,-420.0,0.0003315,7]
[362831054,1748476270851,-420.0,0.0003315,7]
[362831055,1748476270861,-420.0,0.0003315,2]
[362831056,1748476270870,-420.0,0.0003315,7]
[362831057,1748476270880,-425.56251146,0.0003315,7]
[362831058,1748476270889,-420.0,0.0003315,7]
[362831059,1748476270899,-420.0,0.0003315,7]
[362831060,1748476270909,-420.0,0.0003315,7]
[362831061,1748476270918,-403.21041492,0.0003315,7]
[362831062,1748476270927,-420.0,0.0003315,7]
[362831063,1748476270936,-420.0,0.0003315,7]
[362831064,1748476270945,-420.0,0.0003315,7]
[362831065,1748476270954,-1481.97,0.0003315,7]
[362831066,1748476270964,-420.0,0.0003315,7]
[362831067,1748476270973,-1286.2,0.0003315,7]
[362831068,1748476270983,-5355.38,0.0003315,7]
[362831069,1748476270992,-420.0,0.0003315,7]
[362831070,1748476271002,-420.0,0.0003315,5]
[362831071,1748476271011,-420.0,0.0003315,7]
[362831072,1748476271021,-1171.0,0.0003315,7]
[362831073,1748476271030,-420.0,0.0003315,7]
[362831074,1748476271039,-443.6,0.0003315,7]
[362831075,1748476271049,-420.0,0.0003315,7]
[362831076,1748476271058,-420.0,0.0003315,7]
[362831077,1748476271067,-420.0,0.0003315,7]
[362831078,1748476271076,-2598.83,0.0003315,7]
[362831079,1748476271085,-420.0,0.0003315,7]
[362831080,1748476271095,-478.16,0.0003315,7]
[362831081,1748476271106,-420.0,0.0003315,7]
[362831082,1748476271117,-420.0,0.0003315,7]
[362831083,1748476271127,-420.0,0.0003315,7]
[362831084,1748476271136,-200.0,0.00033151,2]
[362831085,1748476271146,-154.0,0.00033151,30]
[362831086,1748476271155,-1115.63551714,0.00033152,2]
[362831087,1748476271164,-693.76618562,0.00033157,2]
[362831088,1748476271174,-500.0,0.00033173,5]
[362831089,1748476271183,-500.0,0.00033173,5]
[362831090,1748476271192,-500.0,0.00033173,5]
[362831091,1748476271202,-500.0,0.00033173,5]
[362831092,1748476271211,-273.47804552,0.00033173,5]
[362831093,1748476271220,-500.0,0.00033173,5]
[362831094,1748476271229,-500.0,0.00033173,5]
[362831095,1748476271239,-500.0,0.00033173,5]
[362831096,1748476271248,-216.71843237,0.00033173,5]
[362831097,1748476271258,-500.0,0.00033173,4]
[362831098,1748476271267,-540.1471315,0.00033177,7]
[362831099,1748476271277,-1085.72,0.00033178,120]
[362831100,1748476271286,-1000.0,0.000332,7]
[362831101,1748476271296,-1085.72,0.00033205,120]
[362831102,1748476271305,-163.01,0.00033205,2]
[362831103,1748476271315,-335.28903436,0.0003321,28]
[362831104,1748476271324,-1000.0,0.00033221,5]
[362831105,1748476271333,-1085.72,0.00033232,120]
[362831106,1748476271342,-1115.63551714,0.00033239,2]
[362831107,1748476271352,-693.76618562,0.00033241,2]
[362831108,1748476271361,-150.0,0.00033246,2]
[362831109,1748476271370,-150.0,0.00033256,2]
[362831110,1748476271386,-1085.72,0.0003326,120]
[362831111,1748476271402,-1085.72,0.00033287,120]
[362831112,1748476271421,-768.18,0.00033296,2]
[362831113,1748476271439,-300.0,0.00033314,7]
[362831114,1748476271454,-1085.72,0.00033315,120]
[362831115,1748476271471,-645.0,0.00033315,2]
[362831116,1748476271490,-9487.85917072,0.00033322,2]
[362831117,1748476271512,-153.91453893,0.00033324,2]
[362831118,1748476271530,-155.37877011,0.00033324,6]
[362831119,1748476271548,-1115.63551714,0.00033325,2]
[362831120,1748476271566,-693.76618562,0.00033325,2]
[362831121,1748476271580,-150.0,0.00033327,2]
[362831122,1748476271598,-1085.72,0.00033342,120]
[362831123,1748476271611,-150.0,0.00033351,2]
[362831124,1748476271628,-1085.72,0.00033369,120]
[362831125,1748476271643,-1085.72,0.00033397,120]
[362831126,1748476271658,-1000.0,0.000334,7]
[362831127,1748476271674,-13070.1925019,0.00033401,2]
[362831128,1748476271690,-5462.6490831,0.00033401,2]
[362831129,1748476271705,-5976.7484391,0.00033401,2]
[362831130,1748476271720,-552.46,0.00033403,7]
[362831131,1748476271735,-151.0,0.00033404,7]
[362831132,1748476271750,-151.0,0.00033404,7]
[362831133,1748476271765,-151.0,0.00033404,7]
[362831134,1748476271780,-151.0,0.00033404,7]
[362831135,1748476271795,-151.0,0.00033404,7]
[362831136,1748476271811,-369.015112,0.00033404,7]
[362831137,1748476271826,-369.015112,0.00033404,7]
[362831138,1748476271841,-204.830113,0.00033414,7]
[362831139,1748476271857,-204.830113,0.00033414,7]
[362831140,1748476271873,-151.0,0.00033414,7]
[362831141,1748476271888,-151.0,0.00033414,7]
[362831142,1748476271903,-500.0,0.00033421,5]
[362831143,1748476271919,-1000.0,0.00033421,5]
[362831144,1748476271934,-1000.0,0.00033421,5]
[362831145,1748476271949,-1000.0,0.00033421,5]
[362831146,1748476271964,-1046.92798736,0.00033421,5]
[362831147,1748476271979,-672.65978924,0.00033421,5]
[362831148,1748476271995,-300.0,0.00033421,10]
[362831149,1748476272010,-349.35447233,0.00033422,3]
[362831150,1748476272024,-461638.38404588,0.00033422,3]
[362831151,1748476273384,-1367.79,0.00031878,2]
[362831152,1748476273393,-1039.05841981,0.00033422,3]
[362831153,1748476273412,-689.12323786,0.00033422,3]
[362831154,1748476273424,-10088.0343376,0.00033422,3]
[362831155,1748476273434,-342.94749772,0.00033422,3]
[362831156,1748476273457,-294.8242968,0.00032876,5]
[362831157,1748476273468,-271.1757032,0.00032876,5]
[362831158,1748476273477,-955.3142968,0.00033422,3]
[362831159,1748476474095,155.25,0.00013699,2]